lending/lending_fUSD_20260222
["ID","MTS","AMOUNT","RATE_DAILY","PERIOD"]
[406322400,1771737043846,-301.212232,0.00041096,120]
[406322402,1771737043856,-301.212232,0.00041096,120]
[406322404,1771737043865,-301.212232,0.00041096,120]
[406322406,1771737043874,-301.212232,0.00041096,120]
[406322408,1771737043884,-301.212232,0.00041096,120]
[406322409,1771737043894,-301.212232,0.00041096,120]
[406322412,1771737043904,-301.212232,0.00041096,120]
[406322413,1771737043914,-151.0,0.00041096,120]
[406322414,1771737043923,-151.0,0.00041096,120]
[406322415,1771737043933,-151.0,0.00041096,120]
[406322416,1771737043943,-151.0,0.00041096,120]
[406322417,1771737043952,-151.0,0.00041096,120]
[406322418,1771737043962,-151.0,0.00041096,120]
[406322419,1771737043971,-151.0,0.00041096,120]
[406322420,1771737043980,-151.0,0.00041096,120]
[406322421,1771737043990,-151.0,0.00041096,120]
[406322422,1771737043999,-151.0,0.00041096,120]
[406322423,1771737044008,-151.0,0.00041096,120]
[406322424,1771737044018,-151.0,0.00041096,120]
[406322425,1771737044028,-152.842402,0.00041096,120]
[406322426,1771737044037,-151.0,0.00041096,120]
[406322428,1771737044046,-151.0,0.00041096,120]
[406322430,1771737044055,-151.0,0.00041096,120]
[406322431,1771737044064,-151.0,0.00041096,120]
[406322432,1771737044074,-151.0,0.00041096,120]
[406322433,1771737044083,-151.0,0.00041096,120]
[406322434,1771737044093,-192.430016,0.00041096,120]
[406322435,1771737044102,-151.0,0.00041096,120]
[406322436,1771737044111,-151.0,0.00041096,120]
[406322437,1771737044120,-153.848333,0.00041096,120]
[406322438,1771737044129,-151.0,0.00041096,120]
[406322439,1771737044138,-151.0,0.00041096,120]
[406322440,1771737044149,-151.0,0.00041096,120]
[406322441,1771737044159,-152.606918,0.00041096,120]
[406322442,1771737044169,-152.606918,0.00041096,120]
[406322443,1771737044178,-152.606918,0.00041096,120]
[406322444,1771737044187,-151.0,0.00041096,120]
[406322445,1771737044197,-153.880187,0.00041096,120]
[406322446,1771737044206,-152.606918,0.00041096,120]
[406322447,1771737044216,-152.606918,0.00041096,120]
[406322448,1771737044228,-152.606918,0.00041096,120]
[406322449,1771737044237,-176.1091,0.00041096,120]
[406322450,1771737044246,-152.606918,0.00041096,120]
[406322451,1771737044255,-152.606918,0.00041096,120]
[406322452,1771737044264,-152.606918,0.00041096,120]
[406322453,1771737044273,-152.606918,0.00041096,120]
[406322454,1771737044282,-152.606918,0.00041096,120]
[406322455,1771737044291,-152.606918,0.00041096,120]
[406322456,1771737044300,-151.0,0.00041096,120]
[406322457,1771737044309,-151.0,0.00041096,120]
[406322458,1771737044319,-151.0,0.00041096,120]
[406322459,1771737044327,-151.0,0.00041096,120]
[406322460,1771737044337,-151.0,0.00041096,120]
[406322461,1771737044346,-151.0,0.00041096,120]
[406322462,1771737044356,-151.0,0.00041096,120]
[406322463,1771737044365,-151.0,0.00041096,120]
[406322464,1771737044374,-151.0,0.00041096,120]
[406322465,1771737044383,-379.593123,0.00041096,120]
[406322466,1771737044392,-153.631636,0.00041096,120]
[406322467,1771737044402,-379.593123,0.00041096,120]
[406322468,1771737044411,-151.0,0.00041096,120]
[406322469,1771737044420,-379.593123,0.00041096,120]
[406322470,1771737044429,-176.21712,0.00041096,120]
[406322471,1771737044438,-172.899175,0.00041096,120]
[406322472,1771737044448,-172.899175,0.00041096,120]
[406322473,1771737044457,-379.593123,0.00041096,120]
[406322474,1771737044466,-172.899175,0.00041096,120]
[406322475,1771737044475,-379.593123,0.00041096,120]
[406322476,1771737044484,-379.593123,0.00041096,120]
[406322477,1771737044493,-151.0,0.00041096,120]
[406322478,1771737044503,-172.899175,0.00041096,120]
[406322479,1771737044512,-151.0,0.00041096,120]
[406322480,1771737044521,-172.899175,0.00041096,120]
[406322481,1771737044531,-379.593123,0.00041096,120]
[406322482,1771737044540,-151.0,0.00041096,120]
[406322483,1771737044550,-172.899175,0.00041096,120]
[406322484,1771737044559,-379.593123,0.00041096,120]
[406322485,1771737044568,-379.593123,0.00041096,120]
[406322486,1771737044578,-151.0,0.00041096,120]
[406322487,1771737044587,-172.899175,0.00041096,120]
[406322488,1771737044596,-151.0,0.00041096,120]
[406322489,1771737044605,-172.899175,0.00041096,120]
[406322490,1771737044614,-379.593123,0.00041096,120]
[406322491,1771737044623,-172.899175,0.00041096,120]
[406322492,1771737044631,-379.593123,0.00041096,120]
[406322493,1771737044640,-151.0,0.00041096,120]
[406322494,1771737044649,-379.593123,0.00041096,120]
[406322495,1771737044658,-151.0,0.00041096,120]
[406322496,1771737044667,-172.899175,0.00041096,120]
[406322497,1771737044676,-151.0,0.00041096,120]
[406322498,1771737044685,-151.0,0.00041096,120]
[406322499,1771737044694,-172.899175,0.00041096,120]
[406322500,1771737044703,-151.0,0.00041096,120]
[406322501,1771737044712,-151.0,0.00041096,120]
[406322502,1771737044721,-172.899175,0.00041096,120]
[406322503,1771737044730,-151.0,0.00041096,120]
[406322504,1771737044739,-151.0,0.00041096,120]
[406322505,1771737044748,-151.0,0.00041096,120]
[406322506,1771737044758,-151.0,0.00041096,120]
[406322507,1771737044767,-151.0,0.00041096,120]
[406322508,1771737044777,-151.0,0.00041096,120]
[406322509,1771737044786,-151.0,0.00041096,120]
[406322510,1771737044795,-276.09510371,0.00041117,15]
[406322511,1771737044804,-167.76,0.00041133,14]
[406322512,1771737044814,-1000.0,0.0004114,2]
[406322513,1771737044823,-166.66,0.00041346,30]
[406322514,1771737044832,-615.9,0.00041498,30]
[406322515,1771737044842,-151.0,0.000415,120]
[406322516,1771737044851,-1928.91908403,0.00041733,120]
[406322517,1771737044860,-276.09510371,0.00041766,15]
[406322518,1771737044870,-152.0,0.00041837,3]
[406322519,1771737044879,-738.0,0.00041848,30]
[406322520,1771737044888,-273.48580674,0.00042002,14]
[406322521,1771737044897,-175.87,0.00042006,2]
[406322522,1771737044906,-8159.95281298,0.00042119,15]
[406322523,1771737044916,-1038.5,0.00042121,30]
[406322524,1771737044925,-166.66,0.00042149,30]
[406322525,1771737044935,-151.0,0.000423,120]
[406322526,1771737044944,-59811.0,0.000423,60]
[406322527,1771737044953,-151.0,0.000423,60]
[406322528,1771737044962,-188.195283,0.000423,60]
[406322529,1771737044972,-151.0,0.000423,120]
[406322530,1771737044981,-151.0,0.000423,7]
[406322531,1771737044990,-630.099207,0.000423,120]
[406322532,1771737044999,-151.0,0.000423,7]
[406322533,1771737045007,-630.099207,0.000423,120]
[406322534,1771737045017,-630.099207,0.000423,120]
[406322535,1771737045025,-630.099207,0.000423,120]
[406322536,1771737045035,-151.0,0.000423,120]
[406322537,1771737045044,-151.0,0.000423,120]
[406322538,1771737045053,-151.0,0.000423,120]
[406322539,1771737045062,-151.0,0.0004231,120]
[406322540,1771737045070,-151.0,0.0004231,120]
[406322541,1771737045079,-151.0,0.00042409,14]
[406322542,1771737045088,-218.96266202,0.00042409,14]
[406322543,1771737045097,-151.0,0.00042409,14]
[406322544,1771737045106,-151.0,0.00042409,14]
[406322545,1771737045114,-172.03273093,0.00042409,14]
[406322546,1771737045123,-152.82072627,0.00042409,14]
[406322547,1771737045132,-292.622262,0.00042409,120]
[406322548,1771737045142,-176.72638,0.00042409,120]
[406322549,1771737045153,-176.72638,0.00042409,120]
[406322550,1771737045163,-176.72638,0.00042409,120]
[406322551,1771737045172,-176.726383,0.00042409,120]
[406322552,1771737045181,-151.0,0.00042409,60]
[406322553,1771737045191,-301.212232,0.00042409,120]
[406322554,1771737045200,-301.212232,0.00042409,120]
[406322555,1771737045209,-301.212232,0.00042409,120]
[406322556,1771737045219,-301.212232,0.00042409,120]
[406322557,1771737045231,-151.0,0.00042409,120]
[406322558,1771737045240,-151.0,0.00042409,120]
[406322559,1771737045249,-151.0,0.00042409,120]
[406322560,1771737045258,-151.0,0.00042409,55]
[406322561,1771737045267,-156.587,0.00042409,55]
[406322562,1771737045276,-162.380719,0.00042409,55]
[406322563,1771737045285,-168.3888056,0.00042409,55]
[406322564,1771737045294,-151.0,0.00042409,120]
[406322565,1771737045304,-151.0,0.00042409,120]
[406322566,1771737045313,-151.0,0.00042409,120]
[406322567,1771737045323,-151.0,0.00042409,120]
[406322568,1771737045332,-152.606918,0.00042409,120]
[406322569,1771737045341,-1030.0,0.00042409,55]
[406322570,1771737045350,-152.606918,0.00042409,120]
[406322571,1771737045360,-152.606918,0.00042409,120]
[406322572,1771737045369,-1068.11,0.00042409,55]
[406322573,1771737045378,-500.0,0.00042409,55]
[406322574,1771737045387,-152.606918,0.00042409,120]
[406322575,1771737045397,-1107.63007,0.00042409,55]
[406322576,1771737045406,-500.0,0.00042409,55]
[406322577,1771737045415,-1148.61238259,0.00042409,55]
[406322578,1771737045424,-151.0,0.00042409,120]
[406322579,1771737045434,-500.0,0.00042409,55]
[406322580,1771737045443,-1191.11104075,0.00042409,55]
[406322581,1771737045452,-500.0,0.00042409,55]
[406322582,1771737045461,-1235.18214925,0.00042409,55]
[406322583,1771737045471,-500.0,0.00042409,55]
[406322584,1771737045480,-1234.0,0.00042409,55]
[406322585,1771737045490,-151.0,0.00042409,120]
[406322586,1771737045499,-1280.88388878,0.00042409,55]
[406322587,1771737045508,-1234.0,0.00042409,55]
[406322588,1771737045517,-500.0,0.00042409,55]
[406322589,1771737045527,-1328.27659266,0.00042409,55]
[406322590,1771737045536,-463.92105648,0.00042409,55]
[406322591,1771737045546,-500.0,0.00042409,55]
[406322592,1771737045556,-151.0,0.00042409,120]
[406322593,1771737045567,-1377.42282659,0.00042409,55]
[406322594,1771737045577,-500.0,0.00042409,55]
[406322595,1771737045586,-1428.38747117,0.00042409,55]
[406322596,1771737045596,-379.593123,0.00042409,120]
[406322597,1771737045606,-500.0,0.00042409,55]
[406322598,1771737045616,-374.94652487,0.00042409,55]
[406322599,1771737045628,-575.27958509,0.00042409,55]
[406322600,1771737045638,-172.899175,0.00042409,120]
[406322601,1771737045647,-379.593123,0.00042409,120]
[406322602,1771737045656,-151.0,0.00042409,120]
[406322603,1771737045665,-172.899175,0.00042409,120]
[406322604,1771737045675,-379.593123,0.00042409,120]
[406322605,1771737045686,-172.899175,0.00042409,120]
[406322606,1771737045696,-151.0,0.00042409,120]
[406322607,1771737045705,-151.0,0.00042409,55]
[406322608,1771737045714,-379.593123,0.00042409,120]
[406322609,1771737045724,-151.0,0.00042409,55]
[406322610,1771737045734,-151.0,0.00042409,120]
[406322611,1771737045743,-151.0,0.00042409,55]
[406322612,1771737045753,-172.899175,0.00042409,120]
[406322613,1771737045763,-243.018,0.00042409,120]
[406322614,1771737045772,-151.0,0.00042409,55]
[406322615,1771737045781,-151.0,0.00042409,55]
[406322616,1771737045790,-250.0,0.00042409,55]
[406322617,1771737045799,-250.0,0.00042409,55]
[406322618,1771737045809,-250.0,0.00042409,55]
[406322619,1771737045818,-250.0,0.00042409,55]
[406322620,1771737045828,-250.0,0.00042409,55]
[406322621,1771737045837,-500.0,0.00042409,55]
[406322622,1771737045846,-250.0,0.00042409,55]
[406322623,1771737045856,-518.5,0.00042409,55]
[406322625,1771737045865,-250.0,0.00042409,55]
[406322627,1771737045874,-537.6845,0.00042409,55]
[406322630,1771737045883,-557.5788265,0.00042409,55]
[406322632,1771737045893,-250.0,0.00042409,55]
[406322634,1771737045902,-250.0,0.00042409,55]
[406322636,1771737045911,-253.96648293,0.00042409,55]
[406322638,1771737045920,-520.0,0.00042409,55]
[406322640,1771737045929,-539.24,0.00042409,55]
[406322641,1771737045938,-559.19188,0.00042409,55]
[406322643,1771737045948,-579.88197956,0.00042409,55]
[406322644,1771737045957,-601.3376128,0.00042409,55]
[406322645,1771737045966,-623.58710448,0.00042409,55]
[406322646,1771737045975,-646.65982734,0.00042409,55]
[406322647,1771737046015,-670.58624095,0.00042409,55]
[406322648,1771737046024,-695.39793186,0.00042409,55]
[406322649,1771737046033,-250.0,0.00042409,55]
[406322650,1771737046042,-250.0,0.00042409,55]
[406322651,1771737046051,-250.0,0.00042409,55]
[406322652,1771737046061,-250.0,0.00042409,55]
[406322653,1771737046070,-250.0,0.00042409,55]
[406322654,1771737046079,-250.0,0.00042409,55]
[406322655,1771737046088,-250.0,0.00042409,55]
[406322656,1771737046097,-250.0,0.00042409,55]
[406322657,1771737046106,-255.78960008,0.00042409,55]
[406322658,1771737046115,-200.0,0.00042409,55]
[406322659,1771737046124,-260.57603344,0.00042409,55]
[406322660,1771737046133,-151.0,0.00042409,55]
[406322661,1771737046143,-6888.0,0.00042409,55]
[406322662,1771737046156,-158.32205063,0.00042409,55]
[406322663,1771737046165,-200.0,0.00042409,55]
[406322664,1771737046174,-200.0,0.00042409,55]
[406322665,1771737046183,-500.0,0.00042409,55]
[406322666,1771737046193,-7142.856,0.00042409,55]
[406322667,1771737046202,-200.0,0.00042409,55]
[406322668,1771737046211,-200.0,0.00042409,55]
[406322669,1771737046222,-500.0,0.00042409,55]
[406322670,1771737046231,-7407.141672,0.00042409,55]
[406322671,1771737046240,-200.0,0.00042409,55]
[406322672,1771737046249,-200.0,0.00042409,55]
[406322673,1771737046258,-500.0,0.00042409,55]
[406322674,1771737046268,-2580.34135519,0.00042409,55]
[406322675,1771737046277,-500.0,0.00042409,55]
[406322676,1771737046286,-200.0,0.00042409,55]
[406322678,1771737046295,-500.0,0.00042409,55]
[406322680,1771737046304,-200.0,0.00042409,55]
[406322681,1771737046313,-250.0,0.00042409,55]
[406322682,1771737046322,-500.0,0.00042409,55]
[406322683,1771737046331,-200.0,0.00042409,55]
[406322684,1771737046340,-500.0,0.00042409,55]
[406322685,1771737046351,-200.0,0.00042409,55]
[406322686,1771737046362,-250.0,0.00042409,55]
[406322687,1771737046371,-500.0,0.00042409,55]
[406322688,1771737046380,-200.0,0.00042409,55]
[406322689,1771737046390,-200.0,0.00042409,55]
[406322690,1771737046399,-500.0,0.00042409,55]
[406322691,1771737046409,-200.0,0.00042409,55]
[406322692,1771737046420,-250.0,0.00042409,55]
[406322693,1771737046431,-500.0,0.00042409,55]
[406322694,1771737046442,-207.4,0.00042409,55]
[406322695,1771737046451,-200.0,0.00042409,55]
[406322696,1771737046459,-500.0,0.00042409,55]
[406322697,1771737046469,-200.0,0.00042409,55]
[406322698,1771737046478,-250.0,0.00042409,55]
[406322699,1771737046487,-500.0,0.00042409,55]
[406322700,1771737046496,-215.0738,0.00042409,55]
[406322701,1771737046505,-500.0,0.00042409,55]
[406322702,1771737046514,-206.80295149,0.00042409,55]
[406322703,1771737046524,-500.0,0.00042409,55]
[406322704,1771737046534,-250.0,0.00042409,55]
[406322705,1771737046543,-250.0,0.00042409,55]
[406322706,1771737046552,-500.0,0.00042409,55]
[406322707,1771737046561,-223.0315306,0.00042409,55]
[406322708,1771737046571,-518.5,0.00042409,55]
[406322709,1771737046579,-500.0,0.00042409,55]
[406322710,1771737046588,-202.53866122,0.00042409,55]
[406322711,1771737046597,-250.0,0.00042409,55]
[406322712,1771737046606,-250.0,0.00042409,55]
[406322713,1771737046616,-500.0,0.00042409,55]
[406322714,1771737046625,-231.28369723,0.00042409,55]
[406322715,1771737046635,-537.6845,0.00042409,55]
[406322716,1771737046644,-250.0,0.00042409,55]
[406322717,1771737046654,-500.0,0.00042409,55]
[406322718,1771737046663,-250.0,0.00042409,55]
[406322719,1771737046674,-239.84119403,0.00042409,55]
[406322720,1771737046684,-557.5788265,0.00042409,55]
[406322721,1771737046693,-500.0,0.00042409,55]
[406322722,1771737046703,-250.0,0.00042409,55]
[406322723,1771737046713,-248.71531821,0.00042409,55]
[406322724,1771737046722,-578.20924308,0.00042409,55]
[406322725,1771737046732,-257.91778498,0.00042409,55]
[406322726,1771737046742,-254.82220106,0.00042409,55]
[406322727,1771737046753,-599.60298507,0.00042409,55]
[406322728,1771737046762,-500.0,0.00042409,55]
[406322729,1771737046771,-621.78829552,0.00042409,55]
[406322730,1771737046780,-151.0,0.00042409,55]
[406322731,1771737046789,-267.46074303,0.00042409,55]
[406322732,1771737046799,-500.0,0.00042409,55]
[406322733,1771737046808,-151.0,0.00042409,55]
[406322734,1771737046818,-644.79446246,0.00042409,55]
[406322735,1771737046827,-242.24632928,0.00042409,55]
[406322736,1771737046837,-500.0,0.00042409,55]
[406322737,1771737046846,-156.587,0.00042409,55]
[406322738,1771737046856,-250.0,0.00042409,55]
[406322739,1771737046865,-668.65185757,0.00042409,55]
[406322740,1771737046874,-500.0,0.00042409,55]
[406322741,1771737046883,-295.15510032,0.00042409,55]
[406322742,1771737046893,-250.0,0.00042409,55]
[406322743,1771737046902,-693.3919763,0.00042409,55]
[406322744,1771737046911,-500.0,0.00042409,55]
[406322745,1771737046920,-250.0,0.00042409,55]
[406322746,1771737046929,-151.0,0.00042409,55]
[406322747,1771737046938,-719.04747942,0.00042409,55]
[406322748,1771737046947,-500.0,0.00042409,55]
[406322749,1771737046957,-250.0,0.00042409,55]
[406322750,1771737046966,-151.0,0.00042409,55]
[406322751,1771737046975,-745.65223616,0.00042409,55]
[406322752,1771737046984,-500.0,0.00042409,55]
[406322753,1771737046993,-250.0,0.00042409,55]
[406322754,1771737047003,-773.2413689,0.00042409,55]
[406322755,1771737047013,-500.0,0.00042409,55]
[406322756,1771737047022,-250.0,0.00042409,55]
[406322757,1771737047032,-500.0,0.00042409,55]
[406322758,1771737047042,-151.0,0.00042409,55]
[406322759,1771737047050,-250.0,0.00042409,55]
[406322760,1771737047059,-2000.0,0.00042409,55]
[406322761,1771737047068,-500.0,0.00042409,55]
[406322762,1771737047077,-250.0,0.00042409,55]
[406322763,1771737047086,-2000.0,0.00042409,55]
[406322764,1771737047095,-500.0,0.00042409,55]
[406322765,1771737047105,-250.0,0.00042409,55]
[406322766,1771737047113,-250.0,0.00042409,55]
[406322767,1771737047123,-250.0,0.00042409,55]
[406322768,1771737047131,-250.0,0.00042409,55]
[406322769,1771737047140,-182.28865697,0.00042409,55]
[406322770,1771737047150,-594.59450076,0.00042409,55]
[406322771,1771737047162,-250.0,0.00042409,55]
[406322772,1771737047171,-801.85129955,0.00042409,55]
[406322773,1771737047179,-299.85362004,0.00042409,55]
[406322774,1771737047189,-151.0,0.00042409,55]
[406322775,1771737047199,-250.0,0.00042409,55]
[406322776,1771737047208,-762.45862112,0.00042409,55]
[406322777,1771737047217,-250.0,0.00042409,55]
[406322778,1771737047226,-500.0,0.00042409,55]
[406322779,1771737047236,-250.0,0.00042409,55]
[406322780,1771737047245,-500.0,0.00042409,55]
[406322781,1771737047254,-250.0,0.00042409,55]
[406322782,1771737047263,-831.51979763,0.00042409,55]
[406322783,1771737047273,-500.0,0.00042409,55]
[406322784,1771737047282,-250.0,0.00042409,55]
[406322785,1771737047291,-862.28603014,0.00042409,55]
[406322786,1771737047301,-151.0,0.00042409,55]
[406322787,1771737047310,-500.0,0.00042409,55]
[406322788,1771737047320,-250.0,0.00042409,55]
[406322789,1771737047329,-894.19061326,0.00042409,55]
[406322790,1771737047339,-500.0,0.00042409,55]
[406322791,1771737047354,-151.0,0.00042409,55]
[406322792,1771737047363,-250.0,0.00042409,55]
[406322793,1771737047374,-927.27566595,0.00042409,55]
[406322794,1771737047383,-500.0,0.00042409,55]
[406322795,1771737047394,-151.0,0.00042409,55]
[406322796,1771737047404,-250.0,0.00042409,55]
[406322797,1771737047414,-961.58486559,0.00042409,55]
[406322798,1771737047424,-151.0,0.00042409,55]
[406322799,1771737047435,-500.0,0.00042409,55]
[406322800,1771737047443,-250.0,0.00042409,55]
[406322801,1771737047452,-997.16350561,0.00042409,55]
[406322802,1771737047461,-500.0,0.00042409,55]
[406322803,1771737047470,-151.0,0.00042409,55]
[406322804,1771737047480,-250.0,0.00042409,55]
[406322805,1771737047490,-500.0,0.00042409,55]
[406322806,1771737047500,-151.0,0.00042409,55]
[406322807,1771737047509,-250.0,0.00042409,55]
[406322808,1771737047518,-151.0,0.00042409,55]
[406322809,1771737047528,-263.5396876,0.00042409,55]
[406322810,1771737047539,-151.0,0.00042409,55]
[406322811,1771737047548,-151.0,0.00042409,55]
[406322812,1771737047566,-151.0,0.0004241,60]
[406322813,1771737047584,-301.212232,0.0004241,120]
[406322814,1771737047595,-301.212232,0.0004241,120]
[406322815,1771737047606,-301.212232,0.0004241,120]
[406322816,1771737047616,-301.212229,0.0004241,120]
[406322817,1771737047625,-151.0,0.0004241,120]
[406322818,1771737047635,-151.0,0.0004241,120]
[406322819,1771737047645,-181.415802,0.0004241,120]
[406322820,1771737047655,-151.0,0.0004241,120]
[406322821,1771737047664,-151.0,0.0004241,120]
[406322822,1771737047673,-151.0,0.0004241,120]
[406322823,1771737047682,-151.0,0.0004241,120]
[406322824,1771737047692,-152.606918,0.0004241,120]
[406322825,1771737047702,-152.606918,0.0004241,120]
[406322826,1771737047722,-152.606918,0.0004241,120]
[406322827,1771737047732,-152.606918,0.0004241,120]
[406322828,1771737047742,-151.0,0.0004241,120]
[406322829,1771737047752,-151.0,0.0004241,120]
[406322830,1771737047763,-151.0,0.0004241,120]
[406322831,1771737047773,-379.593123,0.0004241,120]
[406322832,1771737047783,-172.899175,0.0004241,120]
[406322833,1771737047793,-379.593123,0.0004241,120]
[406322834,1771737047802,-151.0,0.0004241,120]
[406322835,1771737047811,-172.899175,0.0004241,120]
[406322836,1771737047821,-379.593123,0.0004241,120]
[406322837,1771737047830,-172.899175,0.0004241,120]
[406322838,1771737047840,-151.0,0.0004241,120]
[406322839,1771737047849,-379.593124,0.0004241,120]
[406322840,1771737047859,-218.532573,0.0004241,120]
[406322841,1771737047868,-172.899171,0.0004241,120]
[406322842,1771737047878,-151.0,0.0004241,120]
[406322843,1771737047887,-151.0,0.0004241,7]
[406322844,1771737047898,-630.099207,0.0004241,120]
[406322845,1771737047908,-151.0,0.0004241,7]
[406322846,1771737047918,-630.099207,0.0004241,120]
[406322847,1771737047928,-630.099207,0.0004241,120]
[406322848,1771737047939,-630.099211,0.0004241,120]
[406322849,1771737047948,-151.0,0.0004241,120]
[406322850,1771737047959,-151.0,0.0004241,120]
[406322851,1771737047973,-151.0,0.0004241,120]
[406322852,1771737047983,-276.09510371,0.00042414,15]
[406322853,1771737047992,-5569.7,0.000425,2]
[406322854,1771737048003,-920.0,0.0004253,2]
[406322855,1771737048016,-200.74,0.00042668,120]
[406322856,1771737048025,-160.38,0.000427,14]
[406322857,1771737048036,-1043.04,0.000427,30]
[406322858,1771737048047,-1038.5,0.00042745,30]
[406322859,1771737048056,-500.0,0.00042795,60]
[406322860,1771737048066,-203.79143642,0.00042795,60]
[406322861,1771737048076,-150.0,0.00042795,60]
[406322862,1771737048085,-150.0,0.00042795,2]
[406322863,1771737048094,-500.0,0.0004285,60]
[406322864,1771737048104,-150.0,0.0004285,60]
[406322865,1771737048113,-5758.768375,0.00042863,60]
[406322866,1771737048124,-500.0,0.00042905,60]
[406322867,1771737048134,-150.0,0.00042905,60]
[406322868,1771737048143,-210.76023291,0.00042952,2]
[406322869,1771737048156,-551.57602488,0.00042959,60]
[406322870,1771737048165,-167.1623138,0.00042959,60]
[406322871,1771737048174,-167.76,0.00042986,14]
[406322872,1771737048183,-151.0,0.00043,120]
[406322873,1771737048194,-1868.79007999,0.00043,120]
[406322874,1771737048203,-1138.0,0.00043,120]
[406322875,1771737048214,-179.83,0.00043046,2]
[406322876,1771737048227,-276.09510371,0.00043063,15]
[406322877,1771737048236,-157.07,0.00043212,120]
[406322878,1771737048245,-150.0,0.00043288,120]
[406322879,1771737048254,-150.0,0.00043288,120]
[406322880,1771737048263,-336.96741548,0.000433,28]
[406322881,1771737048273,-350.0,0.00043317,4]
[406322882,1771737048282,-5569.7,0.000434,2]
[406322883,1771737048291,-500.0,0.00043425,60]
[406322884,1771737048300,-500.0,0.00043425,60]
[406322885,1771737048309,-734.0,0.0004344,30]
[406322886,1771737048318,-737.1770215,0.0004365,2]
[406322887,1771737048327,-59811.0,0.0004365,60]
[406322888,1771737048336,-295.42566442,0.00043673,10]
[406322889,1771737048345,-276.09510371,0.00043712,15]
[406322890,1771737048354,-151.0,0.000438,120]
[406322891,1771737048364,-183.40676595,0.00043836,2]
[406322892,1771737048373,-1400.0,0.000439,16]
[406322893,1771737048382,-500.0,0.00044,60]
[406322894,1771737048391,-174.43515578,0.00044036,2]
[406322895,1771737048400,-398.02822867,0.00044063,2]
[406322896,1771737048409,-500.0,0.0004409,120]
[406322897,1771737048418,-200.0,0.0004409,120]
[406322898,1771737048428,-30001.0,0.000441,30]
[406322899,1771737048437,-8000.0,0.00044136,120]
[406322900,1771737048446,-336.96741548,0.00044145,28]
[406322901,1771737048455,-1000.0,0.00044221,120]
[406322902,1771737048464,-1800.0,0.000443,16]
[406322903,1771737048473,-5569.7,0.000443,2]
[406322904,1771737048483,-1000.0,0.0004435,14]
[406322905,1771737048495,-150.0,0.00044354,14]
[406322906,1771737048505,-276.09510371,0.00044361,15]
[406322907,1771737048514,-513.39291645,0.00044383,120]
[406322908,1771737048523,-851.57,0.00044383,120]
[406322909,1771737048533,-406.82787781,0.00044383,120]
[406322910,1771737048543,-500.0,0.00044383,2]
[406322911,1771737048552,-500.0,0.00044383,2]
[406322912,1771737048561,-500.0,0.00044383,2]
[406322913,1771737048571,-500.0,0.00044383,2]
[406322914,1771737048580,-500.0,0.00044383,2]
[406322915,1771737048592,-502.44519315,0.00044383,2]
[406322916,1771737048601,-500.0,0.00044383,120]
[406322917,1771737048612,-500.0,0.00044383,120]
[406322918,1771737048623,-508.22482676,0.00044383,120]
[406322919,1771737048633,-300.0,0.000444,16]